[Event "III Menorca Open-A 2024"]
[Site "Ciutadella Menorca"]
[Date "2024.04.07"]
[Round "9.6"]
[White "Aryan Chopra"]
[Black "Pranav Anand"]
[Result "1-0"]
[ECO "C54"]
[WhiteElo "2630"]
[BlackElo "2519"]
[Annotator "TA"]
[PlyCount "79"]
[EventDate "2024.04.02"]
[EventType "swiss"]
[EventCountry "ESP"]
[SourceTitle "playchess.com"]
[Source "ChessBase"]
[SourceQuality "1"]
[TimeControl "5400+30"]

{[%evp 17,79,0,0,0,8,0,18,0,0,-7,-10,0,0,-7,0,0,0,0,0,0,0,-7,-14,-11,-5,-12,-9,-45,-24,-50,-36,-52,-12,-13,37,24,91,71,87,60,116,73,90,126,97,108,139,160,179,168,172,174,506,531,512,489,627,645,29994,29995,29995,270,29996,29997]} 1. e4 {[%emt 0:00:03]} e5 {[%emt 0:01:01]} 2. Nf3 {[%emt 0:00:06]} Nc6 {[%emt 0:00:05]} 3. Bc4 {[%emt 0:00:04]} Bc5 {[%emt 0:00:05]} 4. c3 {[%emt 0:00:05]} Nf6 {[%emt 0:00:04]} 5. d4 {[%emt 0:00:24]} exd4 {[%emt 0:00:18]} 6. e5 {[%emt 0:00:06]} d5 {[%emt 0:00:04]} 7. Bb5 {[%emt 0:00:05]} Ne4 {[%emt 0:00:05]} 8. cxd4 {[%emt 0:00:04]} Bb6 {[%emt 0:00:03]} 9. Nc3 {[%emt 0:00:11]} O-O {[%emt 0:00:06]} 10. Be3 {[%emt 0:00:05]} f5 {[%emt 0:00:04]} 11. exf6 {[%emt 0:00:27]} (11. g3 {is more complex.} f4 12. gxf4 Ba5 13. Rc1) 11... Nxf6 {[%emt 0:00:06]} 12. h3 {[%emt 0:00:59] The position is equal.} Ne7 {[%emt 0:00:41][%cal Bc6e7,Be7f5,Bf5g3][%mdl 32]} 13. O-O {[%emt 0:00:14]} Bf5 {[%emt 0:11:09]} 14. Ne5 {[%emt 0:05:56]} c6 {[%emt 0:04:03]} 15. Bd3 {[%emt 0:08:28]} Nd7 {[%emt 0:06:04] Threatens to win with ...Nxe5.} 16. f4 {[%emt 0:05:37]} Bxd3 {[%emt 0:09:45]} 17. Qxd3 {[%emt 0:00:13]} Nf5 {[%emt 0:00:03]} 18. Na4 {[%emt 0:28:26]} Ng3 {[%emt 0:16:07]} 19. Nxb6 {[%emt 0:05:25]} axb6 {[%emt 0:00:56]} 20. Rf3 {[%emt 0:00:49]} Ne4 {[%emt 0:01:39]} 21. a3 {[%emt 0:01:43]} b5 {[%emt 0:04:07]} 22. f5 {[%emt 0:04:28]} Nb6 {[%emt 0:05:01]} 23. Raf1 {[%emt 0:05:03]} Nc4 {[%emt 0:01:10] A dynamic duo of knights.} 24. Bc1 {[%emt 0:00:08]} Qd6 {[%emt 0:09:50]} 25. Ng4 {[%emt 0:00:17]} b4 {[%emt 0:00:41]} (25... Qe7 $11) 26. axb4 {[%emt 0:07:28]} Ra1 {[%emt 0:06:17]} (26... Qxb4 $11 27. f6 Ncd2 28. Bxd2 Qxd2) 27. b3 {[%emt 0:01:40]} Nb6 {[%emt 0:04:49][%cal Ob6d7]} 28. b5 {[%emt 0:01:05][%cal Of5f6]} cxb5 {[%emt 0:00:36]} (28... Nd7 $14) 29. Qxb5 {[%emt 0:00:43][%cal Of5f6]} (29. f6 {with more complications.} Nxf6 30. Nxf6+ Rxf6 31. Rxf6 gxf6 32. Qc3) 29... Qc6 {[%emt 0:03:26]} 30. Qxc6 {[%emt 0:00:16]} bxc6 {[%emt 0:00:01]} 31. Ne5 {[%emt 0:00:44] Inhibits Nd7.} Rc8 {[%emt 0:00:19]} 32. g4 {[%emt 0:03:15]} c5 {[%emt 0:02:14] [#]} 33. dxc5 {[%emt 0:00:27]} Nxc5 {[%emt 0:00:59]} 34. Be3 {[%emt 0:06:01]} Ra2 {[%emt 0:02:14]} (34... Rxf1+ {is more resistant.} 35. Rxf1 (35. Kxf1 Ncd7 $18) 35... Ncd7) 35. f6 $18 {[%emt 0:05:37]} gxf6 {[%emt 0:00:35]} 36. Bxc5 {[%emt 0:00:24]} Rxc5 {[%emt 0:05:04]} 37. Rxf6 {[%emt 0:00:19] White threatens Rf8+ and mate.} d4 {[%emt 0:00:13]} 38. Rf8+ {[%emt 0:00:39]} Kg7 {[%emt 0:00:04]} 39. R1f7+ {[%emt 0:00:04]} Kh6 {[%emt 0:00:04] [#]} 40. g5+ $1 {[%emt 0:00:04][%mdl 512] Weighted Error Value: White=0.08 (flawless) /Black=0.54.  Mistake:       	---       	Black=4      Inaccurate:     	White=4     	Black=2      OK:         	White=14    	Black=11     Best:        	White=2     	---} 1-0

[Event "III Menorca Open-A 2024"]
[Site "Ciutadella Menorca"]
[Date "2024.04.07"]
[Round "9.7"]
[White "Vogel, Roven"]
[Black "Pranav Vijay"]
[Result "1-0"]
[ECO "A13"]
[WhiteElo "2528"]
[BlackElo "2252"]
[Annotator "TA"]
[PlyCount "89"]
[EventDate "2024.04.02"]
[EventType "swiss"]
[EventCountry "ESP"]
[SourceTitle "playchess.com"]
[Source "ChessBase"]
[SourceQuality "1"]
[TimeControl "5400+30"]

{[%evp 9,89,10,7,1,23,10,17,11,32,29,29,14,39,37,25,16,29,22,45,45,52,55,31,50,76,75,79,95,98,97,85,33,119,72,162,132,188,142,122,152,312,324,317,308,316,326,333,333,325,297,313,310,318,312,383,386,377,291,369,377,383,374,355,352,29954,29949,29960,29953,3053,2880,29963,29966,29960,29970,29970,29971,29971,29972,29973,29972,29969,12257]} 1. Nf3 {[%emt 0:00:05]} Nf6 {[%emt 1:31:00]} 2. c4 {[%emt 0:00:07]} e6 {[%emt 0:00:00]} 3. b3 {[%emt 0:01:20]} d5 {[%emt 0:00:00]} 4. Bb2 {[%emt 0:00:07]} Bd6 {[%emt 0:00:00]} 5. e3 {[%emt 0:01:43]} O-O {[%emt 0:00:00]} 6. Nc3 {[%emt 0:00:07]} b6 {[%emt 0:00:00]} 7. cxd5 {[%emt 0:04:04]} exd5 {[%emt 0:00:00]} 8. Nb5 {[%emt 0:00:42] The position is equal.} c5 {[%emt 0:00:00]} 9. Nxd6 {[%emt 0:03:45]} Qxd6 {[%emt 0:00:00]} 10. d4 {[%emt 0:01:10]} Ba6 {[%emt 0:00:00]} 11. Bxa6 {[%emt 0:01:06]} Nxa6 {[%emt 0:00:00]} 12. dxc5 {[%emt 0:05:50]} bxc5 {[%emt 0:00:00]} 13. O-O {[%emt 0:00:10]} Rad8 {[%emt 0:00:00]} 14. Rc1 {[%emt 0:02:24]} Rfe8 {[%emt 0:00:00]} 15. Ne1 {[%emt 0:05:16]} Ne4 {[%emt 0:00:00]} 16. Nd3 {[%emt 0:01:03]} f6 {[%emt 0:00:00]} 17. Qg4 {[%emt 0:05:45]} Qe7 {[%emt 0:00:00][%cal Oc5c4]} 18. Rfd1 {[%emt 0:05:07] White is more active.} Qf7 {[%emt 0:00:00]} 19. h4 {[%emt 0:07:01]} (19. Qe2 {simplifies} Nb4 20. Nxb4 cxb4 21. Qb5) 19... c4 {[%emt 0:00:00] [#]} 20. Nf4 {[%emt 0:01:37]} (20. bxc4 $1 $16 dxc4 21. Nf4) 20... Nc7 {[%emt 0:00:00]} (20... Nb4 $1 $14) 21. Qf5 {[%emt 0:06:01]} ({White should try} 21. h5) 21... g6 {[%emt 0:00:00]} (21... Rb8 $16) 22. Qg4 $18 {[%emt 0:00:02]} Rb8 {[%emt 0:00:00]} (22... a6 $16 {might work better.} 23. Qe2 h6 24. bxc4 dxc4) 23. Bd4 {[%emt 0:01:40]} (23. f3 $18 Nd6 24. e4) 23... cxb3 $16 {[%emt 0:00:00]} 24. axb3 {[%emt 0:00:19]} (24. Bxa7 $6 b2 25. Rb1 f5 $11) 24... Rxb3 $2 {[%emt 0:00:00] Loses the game.} (24... Rb7 $16 {keeps fighting.} 25. Rd3 Nb5) 25. f3 $1 $18 {[%emt 0:04:23]} (25. Bxa7 Rb2 $14) 25... f5 {[%emt 0:00:33][%cal Bf6f5,Bf5f4][%mdl 32]} 26. Qh3 {[%emt 0:00:06]} Nd6 {[%emt 0:00:25]} 27. h5 $1 {[%emt 0:00:38] hxg6 would now be deadly.} (27. Bxa7 Ne6 28. Bd4 (28. Rxd5 $2 Nxf4 29. exf4 Qxd5 $19) 28... Nxd4 29. exd4 (29. Rxd4 Rbxe3 30. h5 Re1+ 31. Rxe1 Rxe1+ 32. Kh2 Qa7 $15) 29... Ne4 $11) 27... g5 {[%emt 0:01:49]} 28. Qg3 {[%emt 0:03:18]} h6 {[%emt 0:00:12] [#]} 29. Rxc7 {[%emt 0:02:14][%mdl 512]} Qxc7 {[%emt 0:00:09]} 30. Nxd5 {[%emt 0:00:07]} f4 {[%emt 0:01:30]} (30... Qc2 $2 31. Qxd6 Qxd1+ 32. Kh2 $18) 31. Qe1 {[%emt 0:03:26]} (31. Nxc7 fxg3 32. Nxe8 Nxe8 $11) (31. exf4 Qc2 32. Ra1 (32. Nf6+ Kf7 $11) 32... Rb1+ 33. Kh2 Ree1 34. Qxe1 (34. Nf6+ $2 Kf8 $19) 34... Rxe1 35. Rxe1 Qd2 $11) 31... Qc2 {[%emt 0:03:20][%cal Oe8e3]} 32. Nf6+ {[%emt 0:06:35]} (32. Bxa7 fxe3 33. Nf6+ Kf7 34. Nxe8 (34. Rxd6 $2 Rb1 $19) 34... Rb2 35. Nxd6+ Kg8 $11) 32... Kf7 {[%emt 0:00:22]} 33. Nxe8 {[%emt 0:00:13]} (33. Bxa7 $2 Rb2 $19 (33... Kxf6 34. Rxd6+ Ke7 35. Rb6 $11) (33... Kxf6 34. Rxd6+ Ke7 35. Rb6 $15)) 33... Nxe8 {[%emt 0:00:06]} 34. exf4 {[%emt 0:01:06]} (34. Bxa7 fxe3 35. Rc1 (35. Bxe3 $2 Rxe3 36. Rd7+ Ke6 $19) 35... Qd2 $11) 34... gxf4 {[%emt 0:00:53]} 35. Ra1 {[%emt 0:00:26]} (35. Bxa7 Rb7 $16) 35... a6 {[%emt 0:04:31]} 36. Qe5 {[%emt 0:01:50]} (36. Rxa6 $2 Rb1 $19) 36... Qc6 {[%emt 0:01:02] Dodges Qd5+} (36... Rb5 $18 37. Qxf4+ Qf5 38. Qxh6 Qxh5 39. Qxa6 (39. Qxh5+ Rxh5 40. Rxa6 Rd5 $18) 39... Qd5) 37. Qxf4+ {[%emt 0:00:36]} Ke7 {[%emt 0:01:13] Black is weak on the dark squares} 38. Re1+ {[%emt 0:02:30]} Kd8 {[%emt 0:00:04]} 39. Qf7 {[%emt 0:00:05] Threatening mate with Rxe8+.} Rb7 {[%emt 0:00:09] [#]} 40. Rxe8+ $1 {[%emt 0:02:29][%mdl 512] White mates.} Qxe8 {[%emt 0:00:04]} 41. Bf6+ {[%emt 0:00:07]} ({Weaker is} 41. Qxb7 Qe1+ 42. Kh2 Qh4+ 43. Kg1 Qe1+ 44. Kh2 Qh4+ 45. Kg1 Qe1+ $11) 41... Re7 {[%emt 0:00:03]} 42. Qxe7+ {[%emt 0:00:35]} Qxe7 {[%emt 0:00:04]} 43. Bxe7+ {[%emt 0:00:06]} Kxe7 {[%emt 0:00:02]} 44. Kf2 {[%emt 0:00:05]} Kf6 {[%emt 0:00:12]} 45. g4 {[%emt 0:00:18] Weighted Error Value: White=0.05 (flawless) /Black=0.38.  Mistake:       	White=3     	Black=5      Inaccurate:     	---       	Black=1      OK:         	White=20    	Black=10     Best:        	White=3     	---        Strong:       	White=2     	---        Brilliant:      	White=1     	---} (45. Ke3 $142 Kg5 46. g4 Kh4 47. Kd4 Kg5 48. Kc5 Kh4 49. Kb6 a5 50. Kb5 (50. Kxa5 Kg5 51. Kb4 Kf4 52. Kc4 Ke5 53. Kd3 Ke6 54. f4 Ke7)) 1-0

[Event "III Menorca Open-A 2024"]
[Site "Ciutadella Menorca"]
[Date "2024.04.07"]
[Round "9.9"]
[White "Pichot, Alan"]
[Black "Zhu, Jiner"]
[Result "1/2-1/2"]
[ECO "C84"]
[WhiteElo "2644"]
[BlackElo "2463"]
[Annotator "TA"]
[PlyCount "125"]
[EventDate "2024.04.02"]
[EventType "swiss"]
[EventCountry "ESP"]
[SourceTitle "playchess.com"]
[Source "ChessBase"]
[SourceQuality "1"]
[TimeControl "5400+30"]

{[%evp 43,125,0,0,0,2,12,5,7,1,0,7,8,44,52,72,46,81,76,87,102,80,47,47,52,47,54,54,54,54,47,47,14,101,101,101,101,101,101,101,101,101,101,101,101,101,101,101,101,101,101,101,101,101,101,101,101,101,101,101,25,25,25,25,25,25,25,25,0,0,0,0,0,0,0,0,0,0,0,0,0,0,0,0,0]} 1. e4 {[%emt 0:00:49]} e5 {[%emt 0:00:05]} 2. Nf3 {[%emt 0:00:09]} Nc6 {[%emt 0:00:05]} 3. Bb5 {[%emt 0:01:19]} a6 {[%emt 0:00:11]} 4. Ba4 {[%emt 0:00:10]} Nf6 {[%emt 0:00:07]} 5. O-O {[%emt 0:00:19]} b5 {[%emt 0:00:07]} 6. Bb3 {[%emt 0:00:05]} Bb7 {[%emt 0:00:08]} 7. d3 {[%emt 0:00:58]} Be7 {[%emt 0:01:31] 7...Bc5 deserves study.} 8. c4 {[%emt 0:04:24]} bxc4 {[%emt 0:16:03]} 9. Bxc4 {[%emt 0:00:25]} O-O {[%emt 0:00:12] C84: Closed Ruy Lopez: Unusual White 6th moves.} 10. Nc3 {[%emt 0:00:19]} d6 {[%emt 0:05:19]} 11. a3 {[%emt 0:00:20] 11.Rb1 is not played anymore.} Na5 {[%emt 0:01:46]} 12. Ba2 {[%emt 0:00:32]} c5 {[%emt 0:00:57]} 13. b4 {[%emt 0:19:14]} cxb4 {[%emt 0:02:50]} 14. axb4 {[%emt 0:00:08]} Nc6 {[%emt 0:00:05]} 15. Nd5 {[%emt 0:00:16]} Nxd5 {[%emt 0:11:00]} 16. Bxd5 {[%emt 0:00:06]} Rb8 $146 {[%emt 0:00:10]} ({Predecessor:} 16... Qc8 17. Bd2 Nd8 18. Qb3 Bxd5 19. Qxd5 Ne6 20. Rfc1 Qb8 21. Rc6 Rc8 22. Rac1 Rxc6 23. Qxc6 {1-0 Haeussler,R-Drazkowski,K EU-ch GT229 corr 1984}) 17. Bd2 {[%emt 0:00:49]} Qb6 {[%emt 0:09:01]} 18. Be3 {[%emt 0:15:58]} Nd4 {[%emt 0:08:49]} 19. Bxd4 {[%emt 0:01:28]} exd4 {[%emt 0:00:05]} 20. Qb3 {[%emt 0:19:58]} Bxd5 {[%emt 0:00:16]} 21. Qxd5 {[%emt 0:00:06]} Rfc8 {[%emt 0:00:09]} 22. Rfc1 {[%emt 0:33:38]} (22. Qxd4 Qxd4 23. Nxd4 Bf6 $17 (23... Rxb4 24. Nf5 $16)) (22. g3 $14) 22... Qxb4 $11 {[%emt 0:09:12]} 23. g3 {[%emt 0:03:41]} (23. Nxd4 Rc5 24. Nc6 Qb2 25. Nxe7+ Kf8 $19) (23. Qxd4 Qxd4 24. Nxd4 Bf6 $15) 23... Qb5 {[%emt 0:33:52]} 24. Rxc8+ {[%emt 0:04:19]} ({Don't play} 24. Qxd4 Bf6 25. e5 dxe5 $17 (25... Bxe5 26. Nxe5 dxe5 27. Qa7 $15)) 24... Rxc8 {[%emt 0:00:04]} 25. Qxb5 {[%emt 0:00:05]} axb5 {[%emt 0:00:04]} 26. Ra7 {[%emt 0:01:12]} Bf6 {[%emt 0:01:42]} 27. Rb7 {[%emt 0:00:49]} Rc1+ {[%emt 0:00:27]} 28. Kg2 {[%emt 0:00:06]} g5 {[%emt 0:04:52]} 29. Rxb5 {[%emt 0:03:09]} g4 {[%emt 0:00:08]} 30. Nd2 {[%emt 0:00:07]} Rc3 {[%emt 0:00:41]} 31. Nc4 {[%emt 0:00:26]} Be5 {[%emt 0:04:37]} 32. Nxe5 {[%emt 0:02:46]} dxe5 {[%emt 0:00:03]} 33. Rxe5 {[%emt 0:07:29]} f6 $1 {[%emt 0:01:22]} 34. Rh5 {[%emt 0:00:24]} Rxd3 {[%emt 0:00:16]} 35. Rh4 {[%emt 0:08:00]} Rd1 {[%emt 0:03:00]} 36. Rxg4+ {[%emt 0:00:06]} Kf7 {[%emt 0:09:44]} 37. Rf4 {[%emt 0:02:01]} Re1 {[%emt 0:00:00]} (37... Ke6 $1 $11 {keeps the balance.}) 38. e5 $16 {[%emt 0:00:45]} Rxe5 {[%emt 0:00:00]} 39. Rxd4 {[%emt 0:00:03]} h5 {[%emt 0:00:00]} 40. Rd2 {[%emt 0:05:47]} Kg6 {[%emt 0:00:00]} 41. Kh3 {[%emt 0:00:08]} Ra5 {[%emt 0:00:00]} 42. Kh4 {[%emt 0:00:16]} Ra4+ {[%emt 0:00:00]} 43. f4 {[%emt 0:00:06]} Ra5 {[%emt 0:00:00]} 44. h3 {[%emt 0:00:44]} Rb5 {[%emt 0:00:00]} 45. Rd6 {[%emt 0:00:18]} Rf5 {[%emt 0:00:00]} 46. Rd7 {[%emt 0:00:24]} Ra5 {[%emt 0:00:00]} 47. Rb7 {[%emt 0:00:45]} Rc5 {[%emt 0:05:30]} 48. Rb6 {[%emt 0:00:19]} Kg7 {[%emt 0:01:43]} 49. Ra6 {[%emt 0:01:20]} Rb5 {[%emt 0:00:05]} 50. Ra7+ {[%emt 0:01:10]} Kh6 {[%emt 0:00:45]} 51. g4 {[%emt 0:01:00]} ({White should play} 51. Rc7 $16) 51... hxg4 $11 {[%emt 0:00:06]} 52. hxg4 {[%emt 0:01:13]} Rb1 {[%emt 0:00:12]} 53. Rd7 {[%emt 0:00:22]} Rh1+ {[%emt 0:05:39]} 54. Kg3 {[%emt 0:00:02]} Rf1 {[%emt 0:00:28]} 55. f5 {[%emt 0:00:28]} Rg1+ {[%emt 0:00:51]} 56. Kf3 {[%emt 0:00:06]} Rf1+ {[%emt 0:00:05]} 57. Ke4 {[%emt 0:01:12]} Rg1 {[%emt 0:02:14]} 58. Kd5 {[%emt 0:00:13]} Rxg4 {[%emt 0:01:39]} 59. Ke6 {[%emt 0:00:06]} Ra4 {[%emt 0:00:12]} 60. Kxf6 {[%emt 0:00:15]} Ra6+ {[%emt 0:00:26]} 61. Ke5 {[%emt 0:00:07]} Kg5 {[%emt 0:00:24]} 62. Rg7+ {[%emt 0:00:29]} Kh6 {[%emt 0:00:05]} 63. Re7 {[%emt 0:01:16]} 1/2-1/2

[Event "III Menorca Open-A 2024"]
[Site "Ciutadella Menorca"]
[Date "2024.04.07"]
[Round "9.10"]
[White "Murzin, Volodar"]
[Black "Avila Pavas, Santiago"]
[Result "1-0"]
[ECO "B06"]
[WhiteElo "2632"]
[BlackElo "2500"]
[Annotator "TA"]
[PlyCount "91"]
[EventDate "2024.04.02"]
[EventType "swiss"]
[EventCountry "ESP"]
[SourceTitle "playchess.com"]
[Source "ChessBase"]
[SourceQuality "1"]
[TimeControl "5400+30"]

{[%evp 9,91,24,19,25,39,45,31,31,31,18,10,12,29,16,28,24,46,25,45,10,15,22,17,16,9,4,58,46,49,50,144,152,150,158,162,126,157,109,108,104,141,133,122,128,127,135,141,154,167,145,180,185,181,186,214,202,218,209,215,215,207,216,223,129,265,199,280,265,350,370,587,472,481,466,797,792,746,775,834,814,828,787,2447,2423]} 1. e4 {[%emt 0:02:27]} c5 {[%emt 1:31:00]} 2. Nf3 {[%emt 0:00:06]} g6 {[%emt 0:00:15]} 3. c3 {[%emt 0:00:32]} d5 {[%emt 0:00:32]} 4. exd5 {[%emt 0:00:09]} Qxd5 {[%emt 0:00:10]} 5. d4 {[%emt 0:00:09]} Bg7 {[%emt 0:02:33]} 6. Nbd2 {[%emt 0:00:23]} Nf6 {[%emt 0:11:46]} 7. Bc4 {[%emt 0:01:02]} Qh5 {[%emt 0:01:49]} 8. O-O {[%emt 0:16:12] White is slightly better.} O-O {[%emt 0:02:05]} 9. dxc5 {[%emt 0:01:42]} (9. Re1 {simplifies} cxd4 10. Nxd4 Qxd1 11. Rxd1 Rd8 12. N2f3) 9... Qxc5 {[%emt 0:00:34]} 10. Re1 {[%emt 0:09:43]} Nc6 {[%emt 0:17:36]} 11. Qe2 {[%emt 0:14:48]} Bd7 {[%emt 0:32:52]} 12. Nb3 {[%emt 0:02:29]} Qb6 {[%emt 0:00:13]} 13. h3 {[%emt 0:01:12]} Qc7 {[%emt 0:02:17]} 14. Nbd4 {[%emt 0:13:00]} Nxd4 {[%emt 0:03:33]} 15. Nxd4 {[%emt 0:00:26][%cal Bf3d4,Bd4b5,Bb5d6][%mdl 32]} e5 {[%emt 0:01:47]} 16. Nb5 {[%emt 0:04:07]} Qc6 {[%emt 0:04:13]} 17. Rd1 {[%emt 0:00:21][%cal Oc1g5]} Be8 {[%emt 0:06:15]} ({Better is} 17... a6 $1 $11 18. Na3 Rad8) 18. Bg5 {[%emt 0:16:15][%cal Od1d6] Rd6! would now be deadly.} a6 {[%emt 0:01:53]} 19. Nd6 {[%emt 0:01:29]} h6 {[%emt 0:00:46]} (19... Rd8 $1 $14 20. Nxe8 (20. Qxe5 Nh5 $11) 20... Rfxe8) 20. Bxf6 $16 {[%emt 0:00:24]} Bxf6 {[%emt 0:00:05]} 21. Bd5 $36 {[%emt 0:00:33][%mdl 2048] White has strong initiative.} Qb6 {[%emt 0:01:28]} 22. Bxb7 {[%emt 0:00:34]} Rb8 {[%emt 0:00:18] [#] Black is weak on the light squares} 23. Bd5 {[%emt 0:01:10]} Kg7 {[%emt 0:00:14]} 24. Bb3 {[%emt 0:01:05] White has more active pieces.} Rd8 {[%emt 0:02:08]} 25. Ne4 {[%emt 0:02:39]} Be7 {[%emt 0:04:27]} 26. Rxd8 {[%emt 0:00:19]} Bxd8 {[%emt 0:00:05]} 27. Rd1 {[%emt 0:00:05]} Bc7 {[%emt 0:01:43] Prevents Rd6.} 28. Qc4 {[%emt 0:03:29]} Bb5 {[%emt 0:00:02]} 29. Qb4 {[%emt 0:00:55] aiming for Qe7.} Rd8 {[%emt 0:01:01] [#]} 30. Qe7 $1 {[%emt 0:04:19]} Rxd1+ {[%emt 0:00:05]} 31. Bxd1 {[%emt 0:03:56]} Bc4 {[%emt 0:00:08] [#] Wards off Bb3} 32. Bb3 {[%emt 0:00:20][%mdl 512]} Bxb3 {[%emt 0:00:59]} 33. axb3 $18 {[%emt 0:00:01][%mdl 4096] Endgame. KQB-KQN} Qc6 {[%emt 0:03:32]} 34. Nc5 {[%emt 0:00:28]} Bb8 {[%emt 0:02:00]} 35. b4 {[%emt 0:02:36]} Qd5 {[%emt 0:00:27]} 36. Qd7 {[%emt 0:00:57]} (36. Nxa6 Qd1+ 37. Kh2 Bd6 $16) (36. Nd7 $18 {White threatens Qf8+ and mate.} Qd1+ 37. Kh2) 36... Qa2 {[%emt 0:00:13] A mistake that costs the game.} (36... Bd6 $16) 37. Qd2 {[%emt 0:00:59]} h5 {[%emt 0:01:34]} (37... a5 {was necessary.} 38. bxa5 h5) 38. g3 {[%emt 0:00:27][%cal Bg2g3,Bg3h4,Bh4h5][%mdl 32]} h4 {[%emt 0:00:12]} 39. gxh4 {[%emt 0:00:20]} Qc4 {[%emt 0:00:00] [#]} (39... a5 {is a better defense.} 40. h5 Bc7) 40. h5 $1 {[%emt 0:00:44] White is clearly winning.} Qh4 {[%emt 0:00:18]} (40... Ba7 41. Qe3) 41. hxg6 {[%emt 0:00:13]} ({Not} 41. Nxa6 Ba7 42. h6+ Kg8 $18) 41... Qxh3 {[%emt 0:00:36]} (41... Kxg6 $142 42. Qd3+ (42. Nxa6 Ba7 $18) 42... Kg7 43. Nxa6 (43. Qg3+ Qxg3+ 44. fxg3 e4 $18) 43... Ba7) 42. Qd7 {[%emt 0:00:15]} Qxd7 {[%emt 0:00:19]} 43. Nxd7 {[%emt 0:00:01]} Bc7 {[%emt 0:00:45]} 44. gxf7 {[%emt 0:00:35]} Kxf7 {[%emt 0:00:03]} 45. Kg2 {[%emt 0:00:19]} a5 {[%emt 0:00:43]} 46. bxa5 {[%emt 0:00:09] Weighted Error Value: White=0.13 (very precise) /Black=0.26 (precise) .  Mistake:       	White=2     	Black=6      Inaccurate:     	White=1     	Black=2      OK:         	White=18    	Black=8      Best:        	White=2     	Black=2      Brilliant:      	White=1     	---} 1-0